bitfinex/quotes_ETHUSD_20251117
["timestamp","ask_amount","ask_price","bid_price","bid_amount"]
[1763390010509,0.005,3143.9,3141.7,0.513604]
[1763390010808,0.005,3143.9,3141.6,0.90699264]
[1763390010809,0.005,3143.9,3142.1,2.320504]
[1763390011010,0.4723,3143.9,3142.3,0.405504]
[1763390011308,0.4723,3143.9,3142.1,1.31249664]
[1763390011468,0.4723,3143.9,3142.0,1.31249664]
[1763390011672,0.4723,3143.9,3141.5,0.2428604]
[1763390011910,0.405504,3143.7,3140.4,0.1081]
[1763390012208,0.4723,3143.9,3140.2,3.18442552]
[1763390012209,0.405504,3143.5,3140.2,3.18442552]
[1763390012380,0.405504,3143.5,3139.7,0.1081]
[1763390012381,0.03178451,3143.4,3139.8,0.90699264]
[1763390012718,0.4673,3143.8,3140.2,3.18443219]
[1763390012894,0.405504,3143.6,3140.4,4.09121894]
[1763390013093,0.405504,3143.6,3140.1,0.1131]
[1763390013094,0.03178451,3143.5,3140.1,0.005]
[1763390013275,0.4673,3143.5,3140.2,3.18449225]
[1763390013469,0.4673,3143.5,3141.1,0.410504]
[1763390013910,0.43728851,3143.4,3141.1,0.005]
[1763390014070,0.405504,3143.2,3141.1,0.005]
[1763390014408,0.4673,3143.3,3141.1,0.005]
[1763390014612,0.4673,3143.2,3141.3,0.405504]
[1763390015013,0.4673,3143.2,3141.1,0.410504]
[1763390015172,0.4673,3143.2,3141.4,0.90699264]
[1763390015373,0.002,3143.5,3141.4,0.90699264]
[1763390015374,0.002,3143.5,3141.5,0.85508312]
[1763390015698,0.002,3143.5,3142.2,0.405504]
[1763390016014,0.007,3143.9,3142.6,0.405504]
[1763390016197,0.007,3143.9,3142.3,0.1081]
[1763390016198,0.007,3143.9,3142.8,0.405504]
[1763390016396,0.007,3143.9,3142.9,0.3212]
[1763390016596,0.007,3143.9,3142.5,0.405504]
[1763390017312,0.007,3143.9,3142.7,0.405504]
[1763390017673,0.007,3143.9,3142.9,0.405504]
[1763390018073,0.4673,3143.8,3141.9,2.97189979]
[1763390018273,0.4673,3143.8,3142.0,0.61547684]
[1763390018499,0.4673,3143.8,3142.1,0.405504]
[1763390018710,0.007,3143.9,3142.3,0.405504]
[1763390018910,0.4743,3143.9,3142.0,0.61547684]
[1763390019108,0.4743,3143.9,3142.3,0.405504]
[1763390019270,0.4743,3143.9,3142.5,0.405504]
[1763390019271,0.007,3143.9,3142.5,0.405504]
[1763390019476,0.4673,3143.8,3142.4,0.35879876]
[1763390019686,0.4673,3143.8,3141.8,3.18286006]
[1763390019891,0.03178451,3143.7,3141.5,0.44957912]
[1763390020187,0.4673,3143.6,3141.5,0.44957912]
[1763390020401,0.4673,3143.6,3141.2,6.36692536]
[1763390020621,0.4673,3143.6,3141.3,1.31249664]
[1763390020783,0.4673,3143.6,3141.1,2.87079979]
[1763390020784,0.03178451,3143.5,3141.4,0.7785522]
[1763390020985,0.4673,3143.6,3141.1,0.005]
[1763390021222,0.4673,3143.5,3141.1,0.005]
[1763390021429,0.4673,3143.5,3141.1,3.1885981]
[1763390021622,0.4673,3143.5,3141.1,1.31749664]
[1763390021824,0.4673,3143.4,3141.1,0.91199264]
[1763390022025,0.0062,3143.9,3141.5,1.31249664]
[1763390022238,0.0062,3143.9,3142.0,1.31249664]
[1763390022444,0.4673,3143.8,3142.0,4.17829643]
[1763390022650,0.0062,3143.9,3142.2,1.31249664]
[1763390022801,0.0062,3143.9,3142.6,0.405504]
[1763390023001,0.0062,3143.9,3142.8,0.405504]
[1763390023234,0.0062,3143.9,3143.0,2.85938202]
[1763390023539,0.0062,3143.9,3143.8,3.77279243]
[1763390023738,0.0062,3143.9,3143.8,1.68977588]
[1763390023925,0.0062,3143.9,3143.8,1.79587588]
[1763390024114,0.00155783,3143.9,3143.8,4.66167567]
[1763390024315,0.00155783,3143.9,3143.8,1.79587588]
[1763390024517,0.00155783,3143.9,3143.8,1.41859664]
[1763390024922,0.00155783,3143.9,3143.8,1.31249664]
[1763390025445,0.00155783,3143.9,3143.8,4.59946056]
[1763390026120,0.0002156,3143.9,3143.8,4.11049818]
[1763390026443,0.0002156,3143.9,3143.8,0.43155524]
[1763390026741,0.0002156,3143.9,3143.8,1.31249664]
[1763390026948,0.0002156,3143.9,3143.8,0.41104982]
[1763390027266,0.0002156,3143.9,3143.1,2.79800154]
[1763390027410,0.0002156,3143.9,3143.1,0.90699264]
[1763390027611,0.0002156,3143.9,3143.2,0.405504]
[1763390028047,0.0002156,3143.9,3143.4,0.405504]
[1763390028356,0.0002156,3143.9,3143.6,0.405504]
[1763390028523,0.0002156,3143.9,3143.7,0.405504]
[1763390028845,0.002,3144.2,3143.7,0.511604]
[1763390029144,0.002,3144.2,3144.1,1.31249664]
[1763390029310,0.002,3144.2,3143.6,2.79650864]
[1763390029512,0.002,3144.2,3143.3,3.11685919]
[1763390029719,0.002,3144.2,3143.4,0.90699264]
[1763390029943,0.002,3144.2,3143.4,0.405504]
[1763390030152,0.002,3144.2,3143.1,0.405504]
[1763390030510,0.002,3144.2,3143.3,0.405504]
[1763390030710,0.002,3144.2,3143.3,4.10900528]
[1763390030914,0.002,3144.2,3143.4,0.90699264]
[1763390031109,0.002,3144.2,3143.6,0.405504]
[1763390031628,0.002,3144.2,3143.9,1.31249664]
[1763390031826,0.002,3144.2,3144.1,4.10900528]
[1763390032028,0.002,3144.2,3144.1,1.31249664]
[1763390032230,0.002,3144.2,3144.1,0.511704]
[1763390032915,0.002,3144.2,3144.1,0.405504]
[1763390033115,0.002,3144.2,3144.1,4.59925705]
[1763390033311,0.002,3144.2,3144.1,5.86941072]
[1763390033712,0.002,3144.2,3144.1,2.58265031]
[1763390033953,0.002,3144.2,3144.1,4.47382066]
[1763390034169,0.002,3144.2,3143.8,2.79816299]
[1763390034469,0.002,3144.2,3143.6,0.90699264]
[1763390034810,0.002,3144.2,3143.3,2.79816299]
[1763390034960,0.002,3144.2,3143.3,0.90699264]
[1763390035162,0.002,3144.2,3143.2,0.90699264]
[1763390035360,0.002,3144.2,3143.3,2.79816299]
[1763390035667,0.002,3144.2,3143.7,1.31249664]
[1763390035889,0.002,3144.2,3143.9,0.405504]
[1763390036072,0.002,3144.2,3143.6,0.90699264]
[1763390036073,0.002,3144.2,3143.6,3.70515563]
[1763390036255,0.002,3144.2,3143.6,0.90699264]
[1763390036451,0.002,3144.2,3143.4,0.405504]
[1763390037257,0.002,3144.2,3143.6,0.405504]
[1763390037571,0.002,3144.2,3143.8,1.31249664]
[1763390037753,0.002,3144.2,3144.1,0.1062]
[1763390038093,0.002,3144.2,3144.1,0.511704]
[1763390038300,0.002,3144.2,3144.1,0.405504]
[1763390038799,0.002,3144.2,3144.1,1.31249664]
[1763390039099,0.002,3144.2,3144.1,0.405504]
[1763390039259,0.002,3144.2,3143.7,2.79816299]
[1763390039595,0.4858,3144.2,3142.9,2.79816299]
[1763390039801,0.4858,3144.2,3143.0,0.2798163]
[1763390040460,0.002,3144.2,3143.3,2.79816299]
[1763390040796,0.002,3144.6,3144.2,4.66949664]
[1763390040955,0.007,3144.9,3144.6,3.762504]
[1763390041157,0.005,3146.9,3144.9,1.50841534]
[1763390041399,0.005,3146.9,3145.9,0.405504]
[1763390041559,0.005,3146.9,3145.9,4.09357489]
[1763390041759,0.005,3146.9,3145.9,1.31249664]
[1763390042014,0.005,3146.9,3146.1,0.405504]
[1763390042377,0.4888,3146.9,3146.0,0.40935749]
[1763390042582,0.4888,3146.9,3145.2,2.78107825]
[1763390042583,0.1983,3146.1,3145.2,2.78107825]
[1763390042791,0.1983,3146.1,3145.0,2.78107825]
[1763390043091,0.4838,3146.3,3145.2,0.90699264]
[1763390043266,0.4838,3146.3,3144.9,2.78107825]
[1763390043461,0.4838,3146.3,3143.3,9.09346598]
[1763390043462,0.03178451,3146.2,3144.6,2.78107825]
[1763390043796,0.4838,3146.3,3144.6,3.18005469]
[1763390044107,0.4838,3146.3,3145.1,0.405504]
[1763390044282,0.4838,3146.3,3145.1,2.78107825]
[1763390044617,0.4838,3146.3,3145.1,0.405504]
[1763390044775,0.005,3146.9,3145.4,1.58326532]
[1763390044961,0.0042,3146.9,3146.1,1.31249664]
[1763390045158,0.0042,3146.9,3146.3,1.31249664]
[1763390045510,0.005,3148.9,3146.9,0.405504]
[1763390045511,0.4888,3148.9,3146.9,0.405504]
[1763390045689,0.005,3148.9,3147.1,0.90699264]
[1763390045897,0.6821,3148.3,3147.2,0.405504]
[1763390046201,0.4888,3148.9,3147.1,0.405504]
[1763390046360,0.005,3148.9,3147.5,0.90699264]
[1763390046557,0.005,3148.9,3147.7,0.90699264]
[1763390046866,0.005,3148.9,3148.2,1.31249664]
[1763390047078,0.005,3148.9,3148.2,4.09357489]
[1763390047276,0.005,3149.9,3148.6,1.97623053]
[1763390047571,0.005,3149.9,3148.7,1.71842352]
[1763390047770,0.2033,3149.9,3148.6,0.405504]
[1763390047999,0.4838,3149.8,3148.1,2.78107825]
[1763390048225,0.005,3149.9,3148.2,0.506704]
[1763390048378,0.005,3149.9,3148.2,0.37930783]
[1763390048694,0.005,3149.9,3148.6,0.405504]
[1763390049204,0.005,3149.9,3149.0,0.90699264]
[1763390049407,0.002,3151.3,3149.9,1.31249664]
[1763390049708,0.1983,3153.6,3151.1,0.405504]
[1763390049916,0.09083496,3154.4,3151.4,0.455504]
[1763390050213,0.09083496,3154.4,3151.1,0.405504]
[1763390050214,0.4888,3152.9,3151.1,0.405504]
[1763390050520,0.4888,3152.9,3150.8,0.405504]
[1763390050694,0.4888,3152.9,3150.2,0.99719264]
[1763390050896,0.4888,3152.9,3151.0,1.31249664]
[1763390051266,0.4888,3152.9,3151.6,0.405504]
[1763390051502,0.4888,3152.9,3151.7,0.405504]
[1763390052013,0.4888,3152.9,3151.6,0.90699264]
[1763390052314,0.4888,3152.9,3150.2,4.17413374]
[1763390052315,0.1983,3151.7,3150.2,8.05960683]
[1763390052471,0.4838,3151.6,3150.1,0.005]
[1763390052666,0.03178451,3151.5,3150.1,0.005]
[1763390052894,0.4838,3151.6,3150.1,0.005]
[1763390053208,0.002,3151.9,3150.9,0.90699264]
[1763390053368,0.4838,3151.8,3150.2,7.05980797]
[1763390053567,0.4838,3151.8,3150.4,7.05980797]
[1763390054105,0.002,3151.9,3151.7,0.405504]
[1763390054277,0.002,3152.3,3151.9,0.405504]
[1763390054485,0.1983,3155.5,3152.3,1.31249664]
[1763390054682,0.4838,3154.6,3152.9,1.31249664]
[1763390054887,0.4838,3155.2,3152.9,1.31249664]
[1763390055199,0.4838,3154.6,3153.3,0.90699264]
[1763390055399,0.4838,3154.6,3152.9,10.6369111]
[1763390055400,0.4838,3154.6,3153.1,0.405504]
[1763390055569,0.005,3156.9,3153.7,1.31249664]
[1763390055773,0.4838,3156.1,3154.4,1.31249664]
[1763390056310,0.4888,3154.9,3154.1,0.90699264]
[1763390056612,0.4888,3154.9,3153.0,0.405504]
[1763390056783,0.03178451,3154.8,3152.3,7.05980797]
[1763390057166,0.4838,3154.7,3152.4,0.0902]
[1763390057377,0.005,3154.9,3152.4,0.0902]
[1763390057378,0.005,3154.9,3154.0,0.90699264]
[1763390057577,0.005,3154.9,3154.6,0.90699264]
[1763390057778,0.005,3154.9,3154.7,0.405504]
[1763390058088,0.005,3155.9,3154.7,0.495704]
[1763390058301,0.005,3155.9,3155.8,7.96680061]
[1763390058502,0.005,3155.9,3155.8,8.76348067]
[1763390059005,0.005,3155.9,3155.8,0.90699264]
[1763390059316,0.4908,3157.9,3156.0,0.405504]
[1763390059518,0.4908,3156.9,3155.9,0.90699264]
[1763390059885,0.4908,3156.9,3155.6,0.90699264]
[1763390060142,0.4908,3156.9,3155.1,0.90699264]
[1763390060283,0.1932,3155.6,3153.1,0.005]
[1763390060596,0.1932,3155.6,3153.4,7.05980797]
[1763390060796,0.4858,3155.5,3154.0,7.05980797]
[1763390060996,0.4858,3155.5,3154.1,0.90699264]
[1763390061201,0.4858,3155.5,3154.0,7.05980797]
[1763390061399,0.4858,3155.5,3154.1,0.3212]
[1763390061601,0.4858,3155.5,3154.2,0.7381008]
[1763390061913,0.679,3156.1,3154.7,0.90699264]
[1763390062120,0.679,3156.1,3154.8,0.405504]
[1763390062303,0.4858,3156.0,3154.7,0.90699264]
[1763390062503,0.4858,3156.0,3154.8,0.79668006]
[1763390062717,0.1932,3156.1,3154.9,0.03169672]
[1763390063041,0.4858,3156.6,3155.1,7.05980797]
[1763390063202,0.4858,3156.6,3155.2,0.90699264]
[1763390063391,0.005,3156.9,3155.8,0.90699264]
[1763390063732,0.4858,3156.8,3155.9,0.79668006]
[1763390063902,0.4858,3156.8,3155.3,7.05980797]
[1763390064254,0.005,3156.9,3156.0,0.90699264]
[1763390064393,0.005,3156.9,3156.6,0.90699264]
[1763390064588,0.005,3156.9,3156.1,0.90699264]
[1763390064808,0.005,3156.9,3156.7,0.90699264]
[1763390065142,0.005,3156.9,3156.3,0.405504]
[1763390065308,0.005,3156.9,3156.2,0.90699264]
[1763390065309,0.005,3157.9,3156.9,0.405504]
[1763390065503,0.005,3157.9,3157.8,0.90699264]
[1763390065714,0.005,3157.9,3157.8,1.7036727]
[1763390065906,0.005,3157.9,3157.1,7.05980797]
[1763390066142,0.005,3157.9,3157.2,0.90699264]
[1763390066464,0.005,3157.9,3156.6,1.31249664]
[1763390066752,0.005,3157.9,3157.3,0.405504]
[1763390066910,0.005,3157.9,3157.8,0.90699264]
[1763390067104,0.005,3157.9,3157.8,1.7036727]
[1763390067351,0.4858,3159.6,3157.9,0.405504]
[1763390067549,0.1983,3159.7,3157.9,0.405504]
[1763390067550,0.1983,3159.7,3158.6,0.90699264]
[1763390067705,0.1983,3159.7,3158.7,0.405504]
[1763390068109,0.0042,3159.9,3158.7,0.405504]
[1763390068352,0.09583496,3160.9,3159.7,0.405504]
[1763390068645,0.09583496,3160.9,3160.5,0.90699264]
[1763390068807,0.09583496,3160.9,3160.5,0.79668006]
[1763390069007,0.09583496,3160.9,3160.2,0.90699264]
[1763390069450,0.4593,3160.8,3159.4,0.90699264]
[1763390069760,0.09583496,3160.9,3160.1,0.405504]
[1763390069939,0.09583496,3160.9,3159.5,0.405504]
[1763390069940,0.4593,3160.8,3159.5,7.05980797]
[1763390070147,0.4593,3160.8,3159.6,0.90699264]
[1763390070306,0.4593,3160.8,3158.9,7.05980797]
[1763390070625,0.4593,3160.8,3158.4,7.05980797]
[1763390070821,0.4593,3160.8,3159.0,7.05980797]
[1763390071137,0.09783496,3160.9,3159.7,0.90699264]
[1763390071523,0.4593,3160.8,3159.1,0.7059808]
[1763390071705,0.4593,3160.8,3158.4,7.05980797]
[1763390072206,0.4593,3160.8,3158.0,7.05980797]
[1763390072418,0.4593,3160.8,3158.6,7.05980797]
[1763390072722,0.4593,3160.8,3157.4,7.05980797]
[1763390072723,0.03178451,3160.7,3157.4,7.05980797]
[1763390072958,0.4093,3160.8,3158.0,7.05980797]
[1763390073137,0.09783496,3160.9,3158.6,7.05980797]
[1763390073338,0.09783496,3160.9,3159.1,0.90699264]
[1763390073538,0.09783496,3160.9,3159.2,0.79668006]
[1763390073723,0.09783496,3160.9,3158.0,7.05980797]
[1763390074264,0.09783496,3160.9,3158.5,0.90699264]
[1763390074425,0.09783496,3160.9,3157.6,0.1402]
[1763390074426,0.09783496,3160.9,3159.1,0.90699264]
[1763390074759,0.55713496,3160.9,3159.9,0.405504]
[1763390074979,0.55713496,3160.9,3159.8,0.90699264]
[1763390075125,0.55713496,3160.9,3159.9,0.79668006]
[1763390075126,0.09783496,3160.9,3159.9,0.79668006]
[1763390075323,0.09783496,3160.9,3160.4,0.90699264]
[1763390075550,0.09783496,3160.9,3160.0,3.5700502]
[1763390075551,0.09783496,3160.9,3160.2,0.90699264]
[1763390075879,0.002,3161.6,3160.8,0.405504]
[1763390076026,0.002,3161.6,3160.1,0.1402]
[1763390076027,0.005,3162.9,3161.6,1.31249664]
[1763390076223,0.005,3162.9,3161.5,7.05980797]
[1763390076224,0.005,3162.9,3161.7,0.83723046]
[1763390076433,0.005,3162.9,3161.5,0.16528302]
[1763390076434,0.4593,3162.8,3161.5,0.16528302]
[1763390077464,0.1893,3161.6,3161.5,0.16528302]
[1763390077824,0.6486,3161.6,3160.2,7.05980797]
[1763390078024,0.1893,3161.6,3159.9,0.79668006]
[1763390078224,0.1893,3161.6,3160.4,7.05980797]
[1763390078562,0.005,3162.9,3160.5,0.90699264]
[1763390078563,0.4593,3162.0,3160.5,0.90699264]
[1763390078736,0.4593,3162.0,3160.6,0.405504]
[1763390078938,0.4593,3162.7,3161.1,0.90699264]
[1763390079123,0.4593,3162.7,3161.2,1.20218406]
[1763390079327,0.4593,3162.7,3161.2,0.79668006]
[1763390079766,0.4593,3162.7,3161.3,0.405504]
[1763390079988,0.4593,3162.7,3160.4,7.05980797]
[1763390080191,0.1893,3161.3,3159.3,7.05980797]
[1763390080337,0.1893,3161.3,3158.1,0.055]
[1763390080338,0.1893,3161.3,3158.7,7.05980797]
[1763390080542,0.49108451,3161.2,3158.7,7.05980797]
[1763390080785,0.4593,3161.2,3158.7,7.05980797]
[1763390080985,0.4593,3161.2,3159.3,7.05980797]
[1763390081137,0.4593,3161.2,3159.4,0.7059808]
[1763390082540,0.4593,3161.2,3159.5,0.405504]
[1763390082787,0.4593,3162.4,3160.6,7.05980797]
[1763390083086,0.4593,3162.4,3160.8,0.405504]
[1763390083087,0.005,3161.9,3160.8,0.405504]
[1763390083241,0.005,3161.9,3161.3,1.31249664]
[1763390083622,0.4643,3161.9,3159.6,1.21329264]
[1763390083793,0.4643,3161.9,3159.1,0.005]
[1763390084093,0.4643,3161.9,3159.5,7.05980797]
[1763390084377,0.4643,3161.9,3160.2,0.90699264]
[1763390084773,0.4643,3161.9,3160.3,0.405504]
[1763390085007,0.4643,3161.9,3159.8,7.05980797]
[1763390085313,0.03178451,3161.8,3158.6,7.05980797]
[1763390085490,0.4643,3161.9,3159.3,0.90699264]
[1763390085695,0.4643,3161.9,3159.5,0.405504]
[1763390085696,0.4593,3161.8,3159.5,0.405504]
[1763390085889,0.4593,3161.8,3159.4,1.11321589]
[1763390086091,0.4593,3161.8,3159.5,0.405504]
[1763390086475,0.4593,3161.8,3159.5,7.05980797]
[1763390086812,0.03178451,3161.7,3159.4,1.11321589]
[1763390087113,0.4593,3161.8,3159.4,0.90699264]
[1763390087322,0.4593,3161.7,3159.4,7.05980797]
[1763390087491,0.4593,3161.7,3159.5,1.31249664]
[1763390087814,0.4593,3161.7,3159.5,0.90699264]
[1763390088117,0.4593,3161.7,3159.1,0.005]
[1763390088316,0.03178451,3161.6,3159.1,0.005]
[1763390088615,0.405504,3161.5,3159.1,0.005]
[1763390088821,0.005,3161.9,3158.1,0.005]
[1763390088822,0.1893,3159.2,3158.1,0.005]
[1763390089329,0.1893,3158.2,3158.1,0.005]
[1763390089621,0.4593,3159.1,3158.1,0.005]
[1763390090893,0.4593,3159.1,3158.8,0.001]
[1763390091085,0.4585,3159.1,3158.8,0.001]
[1763390092038,0.1893,3160.3,3158.8,0.001]
[1763390093021,0.03178451,3160.2,3158.8,0.001]
[1763390093221,0.4593,3160.2,3158.8,0.001]
[1763390093786,0.1893,3160.8,3158.8,1.31349664]
[1763390093983,0.1893,3160.8,3159.4,1.31249664]
[1763390094186,0.005,3160.9,3160.0,0.90699264]
[1763390095530,0.4593,3160.8,3159.4,0.90699264]
[1763390095758,0.4593,3160.8,3158.9,0.83733046]
[1763390095945,0.1893,3160.7,3158.9,0.83733046]
[1763390096143,0.1893,3160.7,3159.0,0.17453231]
[1763390096310,0.1893,3160.7,3159.0,1.08152495]
[1763390096512,0.4593,3160.6,3159.0,0.17453231]
[1763390096734,0.4593,3160.6,3158.8,6.33248432]
[1763390096936,0.4593,3160.6,3158.8,0.001]
[1763390097136,0.4593,3160.6,3158.8,0.90799264]
[1763390097309,0.4593,3160.6,3158.9,7.05980797]
[1763390097515,0.4593,3160.6,3159.0,0.90699264]
[1763390097755,0.4593,3160.6,3159.1,0.79668006]
[1763390098530,0.4593,3160.6,3158.8,0.001]
[1763390100129,0.4593,3160.6,3159.0,1.31249664]
[1763390100316,0.005,3160.9,3159.5,7.05980797]
[1763390100521,0.005,3160.9,3160.8,0.96199264]
[1763390100744,0.005,3160.9,3160.2,0.405504]
[1763390100745,0.005,3160.9,3160.5,0.90699264]
[1763390101057,0.4523,3163.1,3160.7,0.405504]
[1763390101240,0.1893,3163.8,3160.6,0.79668006]
[1763390101576,0.4523,3161.8,3159.3,4.01462028]
[1763390101752,0.1864,3160.2,3158.6,7.05980797]
[1763390101930,0.1864,3160.2,3158.1,0.005]
[1763390102118,0.4523,3160.1,3158.1,0.005]
[1763390102629,0.43728851,3160.0,3158.1,0.005]
[1763390102826,0.4523,3160.1,3158.1,0.005]
[1763390103060,0.4523,3160.0,3158.1,0.005]
[1763390103473,0.1864,3160.2,3159.1,0.005]
[1763390103626,0.4523,3161.1,3159.1,0.005]
[1763390103968,0.1914,3161.9,3159.1,0.005]
[1763390103969,0.005,3161.9,3160.0,1.31249664]
[1763390104181,0.005,3161.9,3160.6,4.66949664]
[1763390104383,0.005,3161.9,3161.3,0.90699264]
[1763390104542,0.005,3161.9,3160.9,0.405504]
[1763390104747,0.005,3161.9,3160.7,0.90699264]
[1763390104950,0.005,3161.9,3160.8,0.718604]
[1763390105160,0.005,3161.9,3160.9,0.16255966]
[1763390105372,0.005,3161.9,3161.0,3.16355583]
[1763390105578,0.005,3161.9,3161.2,0.405504]
[1763390106062,0.005,3161.9,3161.4,0.405504]
[1763390106384,0.005,3161.9,3161.3,0.90699264]
[1763390106588,0.005,3161.9,3161.4,1.14109006]
[1763390106733,0.007,3162.9,3161.9,1.31249664]
[1763390107064,0.007,3162.9,3161.9,0.90699264]
[1763390107228,0.4523,3162.8,3160.9,0.32365966]
[1763390107429,0.007,3162.9,3161.4,0.405504]
[1763390107624,0.007,3162.9,3161.9,1.31249664]
[1763390107838,0.007,3162.9,3162.1,0.405504]
[1763390108054,0.007,3162.9,3162.0,0.83723046]
[1763390108886,0.007,3162.9,3161.9,0.90699264]
[1763390109041,0.1864,3162.0,3160.9,0.16255966]
[1763390109240,0.4593,3162.9,3160.4,0.03164156]
[1763390109464,0.4593,3162.9,3161.0,1.06309264]
[1763390109630,0.4593,3162.9,3161.1,0.405504]
[1763390109631,0.007,3162.9,3161.1,0.405504]
[1763390109830,0.002,3161.9,3161.2,0.3081]
[1763390110081,0.002,3161.9,3161.1,0.405504]
[1763390110318,0.002,3161.9,3161.0,0.1561]
[1763390110478,0.002,3161.9,3161.3,0.90699264]
[1763390110678,0.002,3162.3,3161.4,2.31848557]
[1763390111015,0.002,3162.3,3161.5,0.713604]
[1763390111199,0.002,3162.3,3161.1,4.32272028]
[1763390111400,0.002,3162.3,3161.3,3.16325562]
[1763390111605,0.002,3162.3,3161.4,1.31249664]
[1763390111801,0.002,3162.3,3161.5,1.08022635]
[1763390112122,0.002,3162.3,3161.2,0.405504]
[1763390112323,0.002,3162.3,3161.2,1.31249664]
[1763390112475,0.002,3162.3,3161.4,0.405504]
[1763390112814,0.002,3162.3,3161.6,0.405504]
[1763390112977,0.002,3162.3,3161.3,0.3081]
[1763390113174,0.002,3162.3,3161.4,0.405504]
[1763390113402,0.002,3162.3,3161.6,0.90699264]
[1763390113602,0.002,3162.3,3161.7,0.40700481]
[1763390113815,0.002,3162.3,3160.5,0.3081]
[1763390114119,0.0012,3162.3,3160.6,0.03163956]
[1763390114425,0.0012,3162.3,3162.2,0.1561]
[1763390114777,0.0012,3162.3,3162.2,0.4642]
[1763390114980,0.0012,3162.3,3161.6,0.1561]
[1763390115505,0.0012,3162.3,3161.8,9.48826617]
[1763390115706,0.0012,3162.3,3161.9,0.97963662]
[1763390115906,0.0012,3162.3,3161.6,3.31900134]
[1763390116081,0.0012,3162.3,3161.7,0.90699264]
[1763390116402,0.0012,3162.3,3161.2,0.90699264]
[1763390116603,0.0012,3162.3,3160.4,4.01462028]
[1763390116604,0.4523,3162.2,3160.4,4.01462028]
[1763390116804,0.4523,3162.2,3159.2,15.84797213]
[1763390116805,0.405504,3162.1,3160.1,0.005]
[1763390117316,0.6387,3162.2,3160.1,0.005]
[1763390117317,0.405504,3161.9,3160.1,0.005]
[1763390117538,0.1807,3160.2,3160.1,0.005]
[1763390117748,0.4775,3161.9,3160.1,0.005]
[1763390118033,0.883004,3162.1,3160.1,0.005]
[1763390118241,0.405504,3161.9,3160.1,0.005]
[1763390118444,0.1807,3160.2,3159.1,0.005]
[1763390118647,0.1807,3160.2,3159.2,0.03165358]
[1763390118799,0.4775,3160.3,3159.3,0.03165258]
[1763390119003,0.1807,3161.4,3159.2,1.25174622]
[1763390119347,0.4775,3161.3,3159.3,0.76476632]
[1763390119646,0.4775,3161.3,3159.1,4.13743103]
[1763390119941,0.405504,3161.2,3159.1,0.005]
[1763390120098,0.4775,3161.3,3159.2,3.22535831]
[1763390120303,0.4775,3161.2,3159.3,0.32303583]
[1763390120536,0.4775,3161.2,3159.1,0.005]
[1763390120947,0.405504,3161.1,3159.1,0.005]
[1763390121275,0.405504,3160.9,3158.8,0.001]
[1763390121444,0.1807,3158.9,3158.8,0.001]
[1763390121597,0.405504,3160.7,3158.8,0.001]
[1763390121937,0.883004,3160.7,3158.8,0.001]
[1763390122137,0.405504,3160.5,3158.8,0.001]
[1763390122337,0.405504,3160.3,3158.8,0.001]
[1763390122755,0.1872,3158.9,3158.4,0.001]
[1763390123220,0.4873,3159.5,3158.4,0.001]
[1763390123411,0.405504,3160.7,3158.4,0.001]
[1763390123611,0.892804,3160.7,3158.4,0.001]
[1763390123816,0.405504,3160.5,3158.4,0.001]
[1763390124253,0.1807,3160.8,3158.4,0.001]
[1763390124254,0.1872,3158.5,3158.4,0.001]
[1763390124458,0.1872,3158.5,3157.1,0.005]
[1763390124615,0.92458851,3158.4,3157.1,0.005]
[1763390124815,0.92458851,3158.4,3155.1,0.005]
[1763390124816,0.892804,3158.4,3155.1,0.005]
[1763390125036,0.405504,3158.2,3155.1,0.005]
[1763390125239,0.405504,3158.0,3155.1,0.005]
[1763390125680,0.51908451,3157.9,3155.6,0.1671]
[1763390125840,0.43728851,3157.8,3155.1,0.005]
[1763390126353,0.405504,3157.6,3155.1,0.005]
[1763390126753,0.405504,3157.4,3155.1,0.005]
[1763390127074,0.405504,3157.2,3155.1,0.005]
[1763390127284,0.4873,3157.1,3155.2,4.07628942]
[1763390127574,0.4925,3158.4,3155.7,0.1671]
[1763390127775,0.4925,3158.3,3156.2,0.90699264]
[1763390127960,0.4925,3158.3,3156.3,0.40804395]
[1763390128171,0.4925,3158.3,3156.2,0.90699264]
[1763390128572,0.405504,3158.2,3156.1,0.005]
[1763390129177,0.4925,3158.1,3156.2,1.23709264]
[1763390129334,0.4925,3158.1,3156.1,0.005]
[1763390129541,0.4925,3158.1,3156.2,0.90699264]
[1763390129872,0.4925,3158.1,3156.3,0.40804443]
[1763390130078,0.4925,3158.1,3156.1,0.03668467]
[1763390130285,0.4925,3158.1,3156.2,0.90699264]
[1763390130853,0.1872,3158.5,3156.3,0.3301]
[1763390131056,0.6797,3158.5,3156.3,0.3301]
[1763390131280,0.6797,3158.5,3156.1,3.17340628]
[1763390131493,0.1872,3158.5,3156.4,0.90699264]
[1763390131644,0.005,3158.9,3156.5,0.405504]
[1763390131844,0.005,3158.9,3156.6,0.3301]
[1763390132166,0.005,3158.9,3156.7,0.405504]
[1763390132370,0.005,3158.9,3156.8,0.01581567]
[1763390132597,0.005,3158.9,3156.6,0.3301]
[1763390132795,0.4975,3158.9,3156.6,0.3301]
[1763390133096,0.4975,3158.9,3156.7,0.405504]
[1763390133325,0.4975,3158.9,3156.6,0.3301]
[1763390133463,0.4975,3158.9,3156.8,0.90699264]
[1763390133660,0.005,3158.9,3156.9,0.7242723]
[1763390133910,0.005,3158.9,3156.9,1.0543723]
[1763390134058,0.005,3158.9,3157.0,0.4331]
[1763390134264,0.405504,3158.7,3156.9,0.7242723]
[1763390134492,0.4925,3158.6,3156.4,0.3301]